[Event "ESP-ch U2000 2024"]
[Site "Albacete"]
[Date "2024.08.28"]
[Round "3.8"]
[White "Sierra Pena, Mario"]
[Black "Galindo Montoya, Diego"]
[Result "1/2-1/2"]
[ECO "D05"]
[WhiteElo "1971"]
[BlackElo "1878"]
[Annotator "TA"]
[PlyCount "101"]
[EventDate "2024.08.27"]
[EventType "swiss"]
[EventCountry "ESP"]
[SourceTitle "playchess.com"]
[Source "ChessBase"]
[SourceQuality "1"]
[TimeControl "5400+30"]

{[%evp 18,101,0,-3,8,0,0,-12,0,0,0,0,0,-9,255,240,394,70,97,0,0,0,0,-10,-34,-26,-29,-29,-14,-141,-101,-78,-88,-110,-102,-105,-58,-44,-32,-24,-38,-64,-60,-55,-61,-66,-63,-58,-46,-69,0,0,0,0,0,-30,-27,-56,-56,-56,-56,-56,-17,-53,-46,-43,-22,-22,-22,-22,-22,-25,-20,-32,-4,-26,-22,-25,-25,-25,0,-11,0,-20,0,-12]} 1. d4 {[%emt 0:00:03]} d5 {[%emt 0:00:09]} 2. Nf3 {[%emt 0:00:05]} Nf6 {[%emt 0:00:07]} 3. e3 {[%emt 0:00:04]} c5 {[%emt 0:00:48]} 4. b3 {[%emt 0:00:07]} e6 {[%emt 0:00:23]} 5. Bd3 {[%emt 0:00:07]} Nc6 {[%emt 0:00:21]} 6. O-O {[%emt 0:00:10]} Be7 {[%emt 0:00:23]} 7. Bb2 {[%emt 0:00:13]} O-O 8. Nbd2 {[%cal Bb1d2,Bd2f3,Bf3d4][%mdl 32]} b6 {[%emt 0:04:42]} 9. Ne5 {[%emt 0:01:06]} Bb7 {[%emt 0:00:53]} 10. f4 cxd4 11. Nxc6 {[%emt 0:10:13]} Bxc6 {[%emt 0:06:17]} 12. Bxd4 Bc5 {[%emt 0:08:36]} 13. Nf3 {[%emt 0:07:39]} Bxd4 {[%emt 0:12:21]} 14. Nxd4 {[%emt 0:00:09]} Bd7 {[%emt 0:06:39]} 15. c4 {[%emt 0:00:51] [#]} e5 $2 {[%emt 0:07:49][%mdl 8192]} 16. fxe5 $18 {[%emt 0:18:23]} Ng4 {[%emt 0:02:14] [#]} (16... dxc4 {is a better defense.} 17. Bxc4 b5 18. exf6 (18. Bxb5 Bxb5 19. Nxb5 Qxd1 $16) 18... bxc4 19. fxg7 (19. bxc4 gxf6 20. c5 Rc8 $18) 19... Re8) 17. Rf4 $2 {[%emt 0:01:13]} (17. cxd5 Qg5 $16) (17. e6 $1 $18 Qg5 18. exd7 (18. Bxh7+ Kxh7 19. exd7 dxc4 $18)) 17... dxc4 {[%emt 0:06:40] [#]} 18. bxc4 {[%emt 0:01:05] White is more active.} (18. Be4 $1 $16 {[%cal Re4a8]} Nxe5 (18... Nxe3 $2 19. Qf3 $18) 19. Bxa8 Qxa8 20. bxc4) 18... Qg5 $11 {[%emt 0:07:55]} (18... Nxe3 $2 {perishes.} 19. Qe2 Nxg2 20. Qxg2 $18) 19. Nf3 {[%emt 0:03:02]} Qe7 {[%emt 0:02:49]} 20. Qc2 {[%emt 0:25:33]} h6 {[%emt 0:06:21]} 21. Qc3 {[%emt 0:00:22]} Rae8 {[%emt 0:02:37][%cal Rg4e5]} 22. Rd1 {[%emt 0:21:21]} Nxe5 {[%emt 0:04:59]} (22... Nxe3 23. Re1 $18) 23. Be2 {[%emt 0:07:58]} (23. Qxe5 $11 {keeps the balance.} Qxe5 24. Nxe5 Rxe5 25. Bh7+ Kxh7 26. Rxd7) 23... Ng6 {[%emt 0:03:46]} 24. Rfd4 {[%emt 0:01:02]} Bc6 {[%emt 0:02:25]} (24... Qxe3+ 25. Qxe3 Rxe3 26. Rxd7 $15) 25. Kf2 {[%emt 0:00:28]} Ne5 {[%emt 0:00:57]} 26. Rf4 {[%emt 0:01:34]} Nxf3 {[%emt 0:01:20]} (26... Qc7 $17 27. Nd4 Ng6) 27. gxf3 {[%emt 0:00:22]} Qe5 {[%emt 0:00:56]} (27... Rc8 {looks sharper.} 28. Bd3 Bd7 29. Be4 f5) 28. Qxe5 {[%emt 0:00:45]} Rxe5 {[%emt 0:00:08]} 29. Rd6 {[%emt 0:00:07]} Rc8 {[%emt 0:03:07]} 30. Rfd4 {[%emt 0:00:02]} Kf8 {[%emt 0:01:35]} 31. f4 {[%emt 0:00:26]} Ra5 {[%emt 0:00:37]} 32. Rd2 {[%emt 0:00:11]} Be4 {[%emt 0:01:59]} 33. Bg4 {[%emt 0:00:47]} f5 {[%emt 0:00:09]} ({Of course not} 33... Rxc4 34. Rd8+ Ke7 35. R2d7+ Kf6 36. Rd6+ Ke7 37. R6d7+ Kf6 38. Rd6+ Ke7 39. R8d7+ Ke8 40. Rd8+ Ke7 $11) (33... Rc7 $15) 34. Bh5 {[%emt 0:00:41]} Rac5 {[%emt 0:01:16]} ({Not} 34... Rxc4 35. Rd8+ Ke7 36. Re8+ Kf6 37. Rd6#) 35. Rd7 {[%emt 0:01:06] Strongly threatening Rf7+.} R5c7 {[%emt 0:01:12]} 36. Rxc7 Rxc7 {[%emt 0:00:08][%mdl 4096] Endgame. KRB-KRB} 37. Rd4 {[%emt 0:01:06]} Ke7 {[%emt 0:00:20]} 38. Bf3 {[%emt 0:00:26]} Bxf3 {[%emt 0:03:48]} 39. Kxf3 $15 {[%emt 0:00:01] KR-KR} Ke6 {[%emt 0:00:10]} 40. e4 {[%emt 0:00:48]} fxe4+ {[%emt 0:00:33]} 41. Rxe4+ {[%emt 0:00:01]} Kd6 {[%emt 0:01:01]} 42. Ke3 {[%emt 0:00:53]} Rc5 {[%emt 0:01:01]} 43. Kd4 {[%emt 0:00:28]} Rh5 {[%emt 0:00:16]} 44. Re2 {[%emt 0:00:19]} Rh4 {[%emt 0:00:21]} 45. Ke3 {[%emt 0:00:49]} Rh3+ {[%emt 0:00:25]} 46. Ke4 {[%emt 0:00:04]} Ke6 {[%emt 0:00:49]} 47. Rg2 {[%emt 0:01:01]} Kf6 {[%emt 0:00:31]} 48. Rd2 {[%emt 0:00:29]} Ke7 {[%emt 0:00:43]} 49. Rg2 {[%emt 0:00:23] The position is equal.} Kf6 {[%emt 0:00:32]} 50. Rd2 $1 {[%emt 0:00:04]} Ke7 {[%emt 0:00:36]} 51. Rg2 {[%emt 0:00:02] Weighted Error Value: White=0.24 (precise) /Black=0.25 (precise) .  Loses game:     	---       	Black=1      Missed win:     	White=1     	---        Mistake:       	White=2     	Black=3      Inaccurate:     	White=4     	Black=3      OK:         	White=12    	Black=12     Best:        	White=4     	Black=1      Strong:       	White=1     	---} 1/2-1/2

[Event "ESP-ch U2000 2024"]
[Site "Albacete"]
[Date "2024.08.28"]
[Round "3.9"]
[White "Asensio Ramon, Ismael"]
[Black "Lopez Ruiz, Jarein"]
[Result "0-1"]
[ECO "D92"]
[WhiteElo "1891"]
[BlackElo "1970"]
[Annotator "TA"]
[PlyCount "73"]
[EventDate "2024.08.27"]
[EventType "swiss"]
[EventCountry "ESP"]
[SourceTitle "playchess.com"]
[Source "ChessBase"]
[SourceQuality "1"]
[TimeControl "5400+30"]

{[%evp 9,73,21,16,-14,-6,-26,0,-70,-64,-131,-135,-139,-141,-135,-141,-115,-118,-137,-127,-139,-115,-115,-60,-44,-58,-75,-73,-100,-84,-91,-95,-134,-131,-129,-127,-422,-335,-313,-306,-361,-392,-437,-435,-552,-590,-768,-752,-840,-831,-897,-820,-961,-914,-1084,-1001,-1160,-1189,-1635,-1522,-29957,-6211,-29957,-29938,-29989,-29990,-29990]} 1. d4 {[%emt 0:00:03]} Nf6 {[%emt 0:00:05]} 2. Nf3 {[%emt 0:00:04]} g6 {[%emt 0:00:04]} 3. c4 {[%emt 0:00:03]} Bg7 {[%emt 0:00:04]} 4. Nc3 {[%emt 0:00:03]} d5 {[%emt 0:00:05]} 5. Bf4 {[%emt 0:00:58]} O-O {[%emt 0:00:33]} 6. g3 {[%emt 0:01:29]} c5 {[%emt 0:05:03]} 7. dxc5 {[%emt 0:06:52]} dxc4 {[%emt 0:01:53]} (7... Qa5 $5) 8. Qa4 {[%emt 0:02:23]} ({White should play} 8. Qxd8 $11 Rxd8 9. Bg2) 8... Nd5 $15 {[%emt 0:07:45]} 9. Be5 {[%emt 0:06:11] [#]} (9. Rc1 $15) 9... Bxe5 $1 $17 {[%emt 0:04:00]} 10. Nxe5 {[%emt 0:00:38]} Nxc3 {[%emt 0:00:05]} 11. bxc3 {[%emt 0:00:11]} Qd5 {[%emt 0:00:05][%csl LRc5,LRe5,LRh1]} 12. Nf3 {[%emt 0:01:05]} Qxc5 {[%emt 0:01:40]} 13. Bg2 {[%emt 0:00:24]} b5 {[%emt 0:07:05]} 14. Qd1 {[%emt 0:02:37]} Bb7 {[%emt 0:01:19]} 15. O-O {[%emt 0:00:54]} Qb6 {[%emt 0:16:32] Black is more active.} (15... Na6 $17 16. Qd2 Rfd8) 16. a4 {[%emt 0:01:07]} Rd8 {[%emt 0:03:03]} 17. Qb1 {[%emt 0:01:03]} a6 {[%emt 0:00:53]} 18. axb5 {[%emt 0:03:43]} axb5 {[%emt 0:00:28]} 19. Rxa8 {[%emt 0:01:22]} Bxa8 {[%emt 0:00:10]} 20. Nd4 {[%emt 0:00:38]} Bxg2 {[%emt 0:01:47]} 21. Kxg2 {[%emt 0:00:11]} b4 {[%emt 0:02:12]} 22. e3 $2 {[%emt 0:02:16][%mdl 8192] This move loses the game for White.} (22. Qe4 $17 {only move.}) 22... b3 {[%emt 0:02:51] [#] aiming for ...Qb7+.} 23. Qe4 {[%emt 0:00:24]} Rd7 {[%emt 0:04:00]} 24. Nf3 {[%emt 0:01:30]} Qc6 {[%emt 0:01:56]} 25. Qf4 {[%emt 0:00:48]} Rd6 {[%emt 0:04:59] White is weak on the light squares} 26. Kg1 {[%emt 0:01:13]} Nd7 {[%emt 0:00:24]} 27. Ng5 {[%emt 0:01:58]} Nf6 {[%emt 0:07:39] Hoping for ...h6.} 28. e4 {[%emt 0:03:52]} h6 {[%emt 0:01:24]} 29. Nxf7 {[%emt 0:01:02]} Kxf7 {[%emt 0:00:34]} 30. e5 {[%emt 0:00:07]} g5 {[%emt 0:01:24]} 31. Qc1 {[%emt 0:01:10]} Rd3 {[%emt 0:01:32]} 32. exf6 {[%emt 0:00:35]} Qxf6 {[%emt 0:00:15]} 33. Qa3 {[%emt 0:00:55]} Rxc3 {[%emt 0:02:36]} 34. Qc5 {[%emt 0:00:21]} b2 {[%emt 0:01:00] ( -> ...Rc1)} 35. Qd5+ {[%emt 0:00:31]} Kg7 {[%emt 0:00:24]} 36. Qb7 {[%emt 0:01:41]} Rc1 {[%emt 0:00:34]} 37. Qb4 {Weighted Error Value: White=0.85/Black=0.08 (flawless) .  Loses game:     	White=1     	---        Mistake:       	White=2     	Black=1      Inaccurate:     	White=3     	Black=1      OK:         	White=3     	Black=9      Best:        	White=2     	Black=3      Strong:       	---       	Black=1} 0-1

[Event "ESP-ch U2000 2024"]
[Site "Albacete"]
[Date "2024.08.29"]
[Round "4.1"]
[White "Sanjuan Garcia, Miguel"]
[Black "Tarraga Navarro, Pablo"]
[Result "0-1"]
[ECO "C11"]
[WhiteElo "1963"]
[BlackElo "1968"]
[Annotator "RC"]
[PlyCount "84"]
[EventDate "2024.08.27"]
[EventType "swiss"]
[EventCountry "ESP"]
[SourceTitle "playchess.com"]
[Source "ChessBase"]
[SourceQuality "1"]
[TimeControl "5400+30"]

1. e4 {[%emt 0:00:03]} e6 {[%emt 0:00:05]} 2. Nf3 {[%emt 0:00:21]} d5 {[%emt 0:00:07]} 3. Nc3 {[%emt 0:00:07]} d4 {[%emt 0:00:06]} 4. Ne2 {[%emt 0:00:16]} c5 {[%emt 0:00:28]} 5. b4 {[%emt 0:01:27]} a6 {[%emt 0:01:52]} 6. bxc5 {[%emt 0:08:06]} Bxc5 {[%emt 0:00:14]} 7. c3 {[%emt 0:04:49]} dxc3 {[%emt 0:05:56]} 8. Nxc3 {[%emt 0:00:03]} Nc6 {[%emt 0:04:55]} 9. Bb2 {[%emt 0:01:42]} Bxf2+ {[%emt 0:09:31]} 10. Kxf2 {[%emt 0:00:17]} Qb6+ {[%emt 0:00:04]} 11. Kg3 {[%emt 0:00:48]} Qxb2 {[%emt 0:00:35]} 12. Bc4 {[%emt 0:29:32]} Qb4 {[%emt 0:03:44]} 13. Qe2 {[%emt 0:00:51]} Nf6 {[%emt 0:14:05]} 14. e5 {[%emt 0:09:57]} Nd7 {[%emt 0:09:35]} 15. Rab1 {[%emt 0:00:24]} Qa3 {[%emt 0:11:25]} 16. Rb3 {[%emt 0:02:31]} Qe7 {[%emt 0:00:20]} 17. d4 {[%emt 0:02:38]} Na5 {[%emt 0:09:13]} 18. Rbb1 {[%emt 0:00:30]} b5 {[%emt 0:02:00]} 19. Bd3 {[%emt 0:01:06]} Bb7 {[%emt 0:00:55]} 20. h4 {[%emt 0:04:07]} Bxf3 {[%emt 0:06:19]} 21. Qxf3 {[%emt 0:00:11]} O-O {[%emt 0:00:18]} 22. Rbe1 {[%emt 0:10:03]} f6 {[%emt 0:02:01]} 23. exf6 {[%emt 0:05:32]} Nxf6 {[%emt 0:00:04]} 24. Kh3 {[%emt 0:01:38]} Qd7 {[%emt 0:04:06]} 25. g3 {[%emt 0:06:19]} e5+ {[%emt 0:01:39]} 26. Bf5 {[%emt 0:02:35]} Qxd4 {[%emt 0:00:09]} 27. Rd1 {[%emt 0:00:52]} Qb6 {[%emt 0:01:54]} 28. Nd5 {[%emt 0:00:36]} Nxd5 {[%emt 0:00:22]} 29. Qxd5+ {[%emt 0:00:02]} Kh8 {[%emt 0:00:10]} 30. Qe4 {[%emt 0:01:29]} Nc4 {[%emt 0:02:39]} 31. Bxh7 {[%emt 0:03:20]} Qe6+ {[%emt 0:00:06]} 32. Kg2 {[%emt 0:00:54]} Qh6 {[%emt 0:00:13]} 33. Bg6 {[%emt 0:01:25]} Ne3+ {[%emt 0:00:10]} 34. Kh3 {[%emt 0:00:04]} Nxd1 {[%emt 0:00:17]} 35. Rxd1 {[%emt 0:00:00]} Rad8 {[%emt 0:01:49]} 36. Re1 {[%emt 0:00:01]} Rd6 {[%emt 0:02:10]} 37. h5 {[%emt 0:00:19]} Rdf6 {[%emt 0:00:31]} 38. Re2 {[%emt 0:01:12]} Rd6 {[%emt 0:03:27]} 39. Kg2 {[%emt 0:01:34]} Qg5 {[%emt 0:01:34]} 40. Kh3 {[%emt 0:01:54]} Qc1 {[%emt 0:02:14]} 41. Rc2 {[%emt 0:00:48]} Qf1+ {[%emt 0:00:21]} 42. Kg4 {[%emt 0:00:24]} Rd4 {[%emt 0:00:12]} 0-1

[Event "ESP-ch U2000 2024"]
[Site "Albacete"]
[Date "2024.08.29"]
[Round "4.2"]
[White "Sala Esquiva, Miguel"]
[Black "Salazar Romero, Abel"]
[Result "1-0"]
[ECO "B13"]
[WhiteElo "1967"]
[BlackElo "1937"]
[Annotator "RC"]
[PlyCount "63"]
[EventDate "2024.08.27"]
[EventType "swiss"]
[EventCountry "ESP"]
[SourceTitle "playchess.com"]
[Source "ChessBase"]
[SourceQuality "1"]
[TimeControl "5400+30"]

1. e4 {[%emt 0:00:08]} c6 {[%emt 0:00:06]} 2. d4 {[%emt 0:00:10]} d5 {[%emt 0:00:05]} 3. exd5 {[%emt 0:00:22]} cxd5 {[%emt 0:00:05]} 4. Bd3 {[%emt 0:00:10]} Nf6 {[%emt 0:00:19]} 5. h3 {[%emt 0:01:16]} Nc6 {[%emt 0:00:21]} 6. c3 {[%emt 0:00:09]} g6 {[%emt 0:01:01]} 7. Nf3 {[%emt 0:02:22]} Bg7 {[%emt 0:00:23]} 8. O-O {[%emt 0:01:32]} O-O {[%emt 0:00:43]} 9. Re1 {[%emt 0:02:16]} Qc7 {[%emt 0:07:21]} 10. Nbd2 {[%emt 0:04:20]} Nh5 {[%emt 0:18:07]} 11. Nb3 {[%emt 0:04:47]} e5 {[%emt 0:12:16]} 12. dxe5 {[%emt 0:08:19]} Nxe5 {[%emt 0:00:33]} 13. Be2 {[%emt 0:07:22]} Nf6 {[%emt 0:12:06]} 14. Kh1 {[%emt 0:14:39]} Nc4 {[%emt 0:06:26]} 15. Nbd4 {[%emt 0:06:53]} Ne4 {[%emt 0:08:52]} 16. Kg1 {[%emt 0:00:40]} Bd7 {[%emt 0:05:52]} 17. Bxc4 {[%emt 0:14:05]} Qxc4 {[%emt 0:00:14]} 18. Bf4 {[%emt 0:00:28]} Rfe8 {[%emt 0:01:27]} 19. Qb3 {[%emt 0:04:34]} b6 {[%emt 0:02:04]} 20. Re3 {[%emt 0:02:21]} Nc5 {[%emt 0:02:05]} 21. Qc2 {[%emt 0:07:26]} Rxe3 {[%emt 0:00:29]} 22. Bxe3 {[%emt 0:00:05]} Re8 {[%emt 0:04:50]} 23. Nb3 {[%emt 0:03:33]} Bf5 {[%emt 0:05:34]} 24. Qd2 {[%emt 0:02:24]} a5 {[%emt 0:03:03]} 25. Bxc5 {[%emt 0:03:35]} bxc5 {[%emt 0:00:16]} 26. Nxa5 {[%emt 0:01:37]} Qb5 {[%emt 0:00:07]} 27. Nb3 {[%emt 0:00:30]} Re2 {[%emt 0:00:21]} 28. Qxd5 {[%emt 0:01:32]} Rxb2 {[%emt 0:03:12]} 29. c4 {[%emt 0:05:16]} Qa4 {[%emt 0:03:11]} 30. Re1 {[%emt 0:01:22]} Bf6 {[%emt 0:01:25]} 31. Qxc5 {[%emt 0:00:38]} Qxa2 {[%emt 0:00:21]} 32. Re8+ {[%emt 0:00:06]} 1-0

[Event "ESP-ch U2000 2024"]
[Site "Albacete"]
[Date "2024.08.29"]
[Round "4.3"]
[White "Perez Gonzalez, Daniel"]
[Black "Perez Travieso, Saul"]
[Result "1-0"]
[ECO "A45"]
[WhiteElo "1981"]
[BlackElo "1933"]
[Annotator "RC"]
[PlyCount "66"]
[EventDate "2024.08.27"]
[EventType "swiss"]
[EventCountry "ESP"]
[SourceTitle "playchess.com"]
[Source "ChessBase"]
[SourceQuality "1"]
[TimeControl "5400+30"]

1. d4 {[%emt 0:00:02]} Nf6 {[%emt 0:00:04]} 2. Bf4 {[%emt 0:00:08]} e6 {[%emt 0:00:53]} 3. e3 {[%emt 0:00:07]} b6 {[%emt 0:00:34]} 4. Qf3 {[%emt 0:00:05]} d5 {[%emt 0:02:26]} 5. Nc3 {[%emt 0:00:14]} a6 {[%emt 0:07:10]} 6. g4 {[%emt 0:02:07]} Bb7 {[%emt 0:07:56]} 7. O-O-O {[%emt 0:00:26]} Bd6 {[%emt 0:11:51]} 8. g5 {[%emt 0:08:23]} Ne4 {[%emt 0:14:52]} 9. Nxe4 {[%emt 0:00:13]} dxe4 {[%emt 0:00:02]} 10. Qg3 {[%emt 0:00:09]} Bxf4 {[%emt 0:02:53]} 11. Qxf4 {[%emt 0:00:15]} Qd6 {[%emt 0:00:43]} 12. Qg4 {[%emt 0:01:25]} Qd5 {[%emt 0:03:44]} 13. c4 {[%emt 0:02:07]} Qa5 {[%emt 0:06:12]} 14. Kb1 {[%emt 0:00:49]} b5 {[%emt 0:02:09]} 15. d5 {[%emt 0:02:46]} exd5 {[%emt 0:05:02]} 16. cxd5 {[%emt 0:00:57]} O-O {[%emt 0:00:19]} 17. Qxe4 {[%emt 0:02:28]} Nd7 {[%emt 0:00:24]} 18. Bd3 {[%emt 0:02:37]} g6 {[%emt 0:02:53]} 19. Qd4 {[%emt 0:05:15]} c5 20. dxc6 {[%emt 0:00:04]} Bxc6 {[%emt 0:01:42]} 21. Be4 {[%emt 0:01:13]} Bxe4+ {[%emt 0:00:02]} 22. Qxe4 {[%emt 0:00:07]} Nc5 {[%emt 0:03:40]} 23. Qe5 {[%emt 0:02:06]} Rfd8 {[%emt 0:11:34]} 24. Ne2 {[%emt 0:06:24]} Nd3 {[%emt 0:02:57]} 25. Qf6 {[%emt 0:01:16]} Qb4 {[%emt 0:05:33]} 26. Nc1 {[%emt 0:05:12]} Qe4 {[%emt 0:06:00]} 27. Ka1 {[%emt 0:11:14]} Rd5 {[%emt 0:01:49]} 28. Ne2 {[%emt 0:11:07]} Nb4 {[%emt 0:00:27]} 29. Qc3 {[%emt 0:03:08]} Nc2+ {[%emt 0:00:21]} 30. Kb1 {[%emt 0:00:16]} Nxe3+ {[%emt 0:00:10]} 31. Kc1 {[%emt 0:00:48]} Rxd1+ {[%emt 0:00:42]} 32. Rxd1 {[%emt 0:00:04]} Nxd1 {[%emt 0:00:03]} 33. Kxd1 {[%emt 0:01:36]} Rd8+ {[%emt 0:00:04]} 1-0

[Event "ESP-ch U2000 2024"]
[Site "Albacete"]
[Date "2024.08.29"]
[Round "4.4"]
[White "Lopez Ruiz, Jarein"]
[Black "Garcia-Ballesteros Banos, Juan A"]
[Result "1/2-1/2"]
[ECO "A21"]
[WhiteElo "1970"]
[BlackElo "1857"]
[Annotator "RC"]
[PlyCount "131"]
[EventDate "2024.08.27"]
[EventType "swiss"]
[EventCountry "ESP"]
[SourceTitle "playchess.com"]
[Source "ChessBase"]
[SourceQuality "1"]
[TimeControl "5400+30"]

1. c4 {[%emt 0:00:05]} e5 {[%emt 0:00:30]} 2. Nc3 {[%emt 0:01:20]} Bb4 {[%emt 0:00:12]} 3. Qb3 {[%emt 0:00:22]} Nc6 {[%emt 0:00:59]} 4. e3 {[%emt 0:00:07]} Bxc3 {[%emt 0:00:57]} 5. Qxc3 {[%emt 0:00:54]} Qf6 {[%emt 0:02:19]} 6. b4 {[%emt 0:12:35]} e4 {[%emt 0:05:54]} 7. Bb2 {[%emt 0:00:55]} Qxc3 {[%emt 0:00:39]} 8. Bxc3 {[%emt 0:00:06]} f6 {[%emt 0:05:28]} 9. Ne2 {[%emt 0:19:06]} a5 {[%emt 0:17:09]} 10. bxa5 {[%emt 0:00:38]} Ne5 {[%emt 0:12:48]} 11. Ng3 {[%emt 0:01:13]} Nd3+ {[%emt 0:00:18]} 12. Bxd3 {[%emt 0:00:07]} exd3 {[%emt 0:00:08]} 13. Nh5 {[%emt 0:00:13]} Kf7 {[%emt 0:07:15]} 14. Nf4 {[%emt 0:02:08]} Ne7 {[%emt 0:00:15]} 15. Nxd3 {[%emt 0:03:25]} Nc6 {[%emt 0:00:19]} 16. Nf4 {[%emt 0:05:20]} Nxa5 {[%emt 0:01:46]} 17. d3 {[%emt 0:02:49]} b6 {[%emt 0:03:53]} 18. Nd5 {[%emt 0:02:02]} Ra7 {[%emt 0:03:59]} 19. Bxa5 {[%emt 0:05:40]} bxa5 {[%emt 0:00:40]} 20. O-O {[%emt 0:00:43]} d6 {[%emt 0:06:11]} 21. Rab1 {[%emt 0:01:52]} Be6 {[%emt 0:01:01]} 22. Nc3 {[%emt 0:07:58]} Bd7 {[%emt 0:01:25]} 23. Rb2 {[%emt 0:01:48]} Ke6 {[%emt 0:03:44]} 24. Rfb1 {[%emt 0:04:22]} Bc6 {[%emt 0:01:35]} 25. h3 {[%emt 0:02:28]} g6 {[%emt 0:02:33]} 26. Ne2 {[%emt 0:00:45]} Kd7 {[%emt 0:06:29]} 27. Nd4 {[%emt 0:00:26]} Re8 {[%emt 0:01:01]} 28. e4 {[%emt 0:07:03]} Rf8 {[%emt 0:02:24]} 29. f3 {[%emt 0:00:48]} Raa8 {[%emt 0:01:12]} 30. Kf2 {[%emt 0:01:57]} f5 {[%emt 0:00:42]} 31. Ke3 {[%emt 0:00:50]} fxe4 {[%emt 0:00:25]} 32. dxe4 {[%emt 0:00:17]} g5 {[%emt 0:02:00]} 33. Nxc6 {[%emt 0:04:06]} Kxc6 {[%emt 0:00:01]} 34. Rb5 {[%emt 0:00:07]} h6 {[%emt 0:01:13]} 35. a4 {[%emt 0:00:18]} Rfe8 {[%emt 0:01:46]} 36. h4 {[%emt 0:00:50]} gxh4 {[%emt 0:01:25]} 37. Rh1 {[%emt 0:00:21]} Rg8 {[%emt 0:00:30]} 38. Kf2 {[%emt 0:04:40]} Rg6 {[%emt 0:00:52]} 39. Rxh4 {[%emt 0:00:23]} Rag8 {[%emt 0:00:19]} 40. g4 {[%emt 0:00:15]} Kd7 {[%emt 0:02:09]} 41. Rxa5 {[%emt 0:00:39]} c6 {[%emt 0:00:07]} 42. Rah5 {[%emt 0:03:08]} Ra8 {[%emt 0:00:57]} 43. a5 {[%emt 0:00:43]} c5 {[%emt 0:00:09]} 44. Rxh6 {[%emt 0:00:24]} Rxh6 {[%emt 0:00:25]} 45. Rxh6 {[%emt 0:00:02]} Rxa5 {[%emt 0:00:13]} 46. g5 {[%emt 0:00:37]} Ra4 {[%emt 0:01:25]} 47. g6 {[%emt 0:00:21]} Ke7 {[%emt 0:00:32]} 48. Rh7+ {[%emt 0:02:21]} Kf6 {[%emt 0:01:00]} 49. Rd7 {[%emt 0:01:30]} Kxg6 {[%emt 0:00:09]} 50. Rxd6+ {[%emt 0:00:04]} Kf7 {[%emt 0:00:29]} 51. Ke3 {[%emt 0:00:39]} Rxc4 {[%emt 0:00:21]} 52. Rc6 {[%emt 0:00:57]} Ke7 {[%emt 0:01:32]} 53. Kd3 {[%emt 0:01:16]} Rc1 {[%emt 0:00:15]} 54. f4 {[%emt 0:00:03]} Kd7 {[%emt 0:01:27]} 55. Ra6 {[%emt 0:00:09]} Rd1+ {[%emt 0:01:29]} 56. Ke2 {[%emt 0:00:44]} Rd4 {[%emt 0:00:49]} 57. Ke3 {[%emt 0:00:01]} Rd1 {[%emt 0:00:09]} 58. f5 {[%emt 0:00:15]} c4 {[%emt 0:02:11]} 59. Ra4 {[%emt 0:00:09]} Rd3+ {[%emt 0:00:27]} 60. Kf4 {[%emt 0:00:01]} c3 {[%emt 0:00:46]} 61. Rc4 {[%emt 0:00:01]} Kd6 {[%emt 0:00:38]} 62. e5+ {[%emt 0:00:43]} Kd5 {[%emt 0:00:19]} 63. Rc8 {[%emt 0:00:19]} Rd4+ {[%emt 0:00:14]} 64. Kg5 {[%emt 0:01:36]} Rc4 {[%emt 0:00:50]} 65. Rd8+ {[%emt 0:00:24]} Kxe5 {[%emt 0:00:15]} 66. Rd1 {[%emt 0:01:26]} 1/2-1/2